[Event "French-ch U16-U18 2024"]
[Site "Agen"]
[Date "2024.04.18"]
[Round "6.7"]
[White "Breuil, Tristan"]
[Black "Zienkiewicz, Jan"]
[Result "1-0"]
[ECO "C84"]
[WhiteElo "2281"]
[BlackElo "2240"]
[Annotator "TA"]
[PlyCount "79"]
[EventDate "2024.04.14"]
[EventType "swiss"]
[EventCountry "FRA"]
[SourceTitle "playchess.com"]
[Source "ChessBase"]
[SourceQuality "1"]
[TimeControl "5400+30"]

{[%evp 14,79,11,13,20,24,17,19,47,39,52,0,27,30,40,40,39,31,18,18,47,40,64,47,79,47,105,95,151,87,147,135,241,237,299,285,297,282,294,291,301,301,344,339,351,368,397,405,475,485,459,424,500,420,433,423,514,502,501,482,567,560,570,481,29992,29993,29995,29996]} 1. e4 {[%emt 0:00:44]} e5 {[%emt 0:00:40]} 2. Nf3 {[%emt 0:00:17]} Nc6 {[%emt 0:00:07]} 3. Bb5 {[%emt 0:00:10]} a6 {[%emt 0:00:08]} 4. Ba4 {[%emt 0:00:05]} Nf6 {[%emt 0:00:03]} 5. O-O {[%emt 0:00:08]} Be7 {[%emt 0:00:11]} 6. d3 {[%emt 0:00:06][%cal Bd2d3,Bd3d4][%mdl 32]} b5 {[%emt 0:00:12]} 7. Bb3 {[%emt 0:00:05]} d6 {[%emt 0:00:32]} 8. c3 {[%emt 0:00:48]} Na5 {[%emt 0:01:14]} 9. Bc2 {[%emt 0:00:21]} c5 {[%emt 0:00:07]} 10. d4 {[%emt 0:00:27]} Nc6 {[%emt 0:03:58] The position is equal.} 11. h3 {[%emt 0:04:56]} O-O {[%emt 0:06:29]} 12. Re1 {[%emt 0:05:51]} (12. d5 $14) 12... cxd4 {[%emt 0:07:33]} 13. cxd4 {[%emt 0:00:42]} exd4 {[%emt 0:00:12]} 14. Nxd4 {[%emt 0:08:19]} Nxd4 {[%emt 0:00:25]} 15. Qxd4 {[%emt 0:00:25]} Be6 {[%emt 0:00:15]} 16. Nc3 {[%emt 0:09:25]} Rc8 {[%emt 0:00:39]} 17. Bb3 {[%emt 0:01:37]} Bc4 {[%emt 0:11:15]} 18. Bf4 {[%emt 0:11:51]} Qc7 {[%emt 0:09:53]} 19. Rac1 {[%emt 0:05:08][%cal Oc3a4]} Rfd8 {[%emt 0:04:55] White stays focused until the end.} (19... Qb7 $14) 20. Na4 {[%emt 0:19:04]} Nh5 {[%emt 0:08:55] [#]} (20... Nd7 $142) 21. Bxc4 {[%emt 0:17:09]} ({Better is} 21. Be3 $1 {Strongly threatening Bxc4.} bxa4 22. Rxc4 (22. Bxc4 Qa5 $18)) 21... bxc4 {[%emt 0:02:45]} (21... Bf6 $142 22. e5 dxe5 (22... bxa4 $2 23. exf6 Nxf6 24. Bxa6 $18) 23. Bxe5 Rxd4 24. Bxc7 g6) 22. Be3 $16 {[%emt 0:00:43] aiming for Nb6. White is more active.} Qa5 {[%emt 0:12:12]} (22... d5 $16) 23. Qd1 $18 {[%emt 0:00:35]} Rc6 {[%emt 0:19:38] [#]} 24. Bb6 $1 {[%emt 0:01:38][%mdl 512]} Rxb6 {[%emt 0:02:11]} 25. Nxb6 {[%emt 0:00:07]} Qxb6 {[%emt 0:01:48]} 26. Qxh5 {[%emt 0:00:02]} Qxb2 {[%emt 0:00:28]} 27. Qa5 {[%emt 0:05:18] Wards off c3} (27. Rxc4 Qxa2 28. Qd5 Bf8) 27... Qd4 {[%emt 0:04:51]} 28. Qd5 {[%emt 0:00:55]} (28. Qxa6 c3 29. a4 Qc5) 28... Qb2 {[%emt 0:01:28]} 29. Qxc4 {[%emt 0:00:23]} ({Don't take} 29. Rxc4 Qxa2 30. g3 g6 $18) 29... a5 {[%emt 0:00:42]} 30. Rb1 {[%emt 0:01:14]} Qd2 {[%emt 0:00:32]} 31. Red1 {[%emt 0:00:45]} Qf4 {[%emt 0:00:08]} 32. g3 {[%emt 0:01:53] Dodges Bh4} Qf3 {[%emt 0:00:43]} 33. Qd3 {[%emt 0:01:34]} Qf6 {[%emt 0:00:15]} 34. Qd5 {[%emt 0:00:26]} Qc3 {[%emt 0:01:05]} 35. Rb7 {[%emt 0:00:41]} Kf8 {[%emt 0:00:02]} 36. Rdb1 {[%emt 0:01:28][%cal Bd1b1,Bb1b3,Bb3f3,Bf3f6][%mdl 32]} g6 {[%emt 0:00:28]} 37. Kg2 {[%emt 0:00:31]} h6 {[%emt 0:00:18]} 38. R1b3 {[%emt 0:00:17]} Qe1 {[%emt 0:00:48]} (38... Qe5 $18 39. Ra7 Qe6 40. Qxe6 (40. Rxa5 Qxd5 41. exd5 Kg7 $18) 40... fxe6) 39. Rf3 {[%emt 0:00:35][%csl Gf3][%cal Rd5f7]} f6 {[%emt 0:00:53] [#]} 40. Rxf6+ $3 {[%emt 0:00:13][%mdl 512] Weighted Error Value: White=0.17 (very precise) /Black=0.48.  Mistake:       	White=2     	Black=5      Inaccurate:     	White=1     	Black=3      OK:         	White=14    	Black=6      Best:        	White=1     	---        Brilliant:      	White=1     	---} 1-0

[Event "French-ch U16-U18 2024"]
[Site "Agen"]
[Date "2024.04.18"]
[Round "6.8"]
[White "Vallee, Louis"]
[Black "Ernst, Luca"]
[Result "1-0"]
[ECO "A29"]
[WhiteElo "2270"]
[BlackElo "2133"]
[Annotator "TA"]
[PlyCount "77"]
[EventDate "2024.04.14"]
[EventType "swiss"]
[EventCountry "FRA"]
[SourceTitle "playchess.com"]
[Source "ChessBase"]
[SourceQuality "1"]
[TimeControl "5400+30"]

{[%evp 19,77,0,-2,0,-3,0,-4,-4,0,-14,0,0,63,70,60,60,54,62,195,207,188,195,231,227,570,567,572,556,560,318,309,231,220,219,321,316,332,322,289,267,364,356,468,410,716,552,705,640,893,872,612,603,1088,1091,1240,1153,29978,29979,29987,29988]} 1. c4 {[%emt 0:00:01]} e5 {[%emt 0:00:07]} 2. g3 {[%emt 0:00:37]} Nf6 {[%emt 0:00:36]} 3. Nc3 {[%emt 0:00:21]} d5 {[%emt 0:01:03]} 4. cxd5 {[%emt 0:00:13]} Nxd5 {[%emt 0:00:05]} 5. Bg2 {[%emt 0:00:11]} Nb6 {[%emt 0:00:23]} 6. Nf3 {[%emt 0:00:22]} Nc6 {[%emt 0:00:06]} 7. O-O {[%emt 0:00:19]} Be7 {[%emt 0:00:03]} 8. a4 {[%emt 0:00:30]} a5 {[%emt 0:04:11]} 9. d4 {[%emt 0:00:50]} exd4 {[%emt 0:05:10]} 10. Nb5 {[%emt 0:00:12]} O-O {[%emt 0:21:59]} 11. Nfxd4 {[%emt 0:00:11]} Nxd4 {[%emt 0:01:10]} 12. Qxd4 {[%emt 0:01:14]} Qxd4 {[%emt 0:01:45]} 13. Nxd4 {[%emt 0:00:03] The position is equal.} c6 {[%emt 0:01:34]} 14. b3 {[%emt 0:02:27]} Bf6 {[%emt 0:04:54]} 15. Be3 {[%emt 0:14:29]} c5 {[%emt 0:04:57] [#]} (15... Nd7 $11) 16. Nb5 $1 $14 {[%emt 0:00:42]} Bxa1 {[%emt 0:00:08]} 17. Rxa1 {[%emt 0:00:19]} Nd7 {[%emt 0:26:10]} 18. Rd1 {[%emt 0:01:31][%mdl 1024] White has compensation.} Rb8 {[%emt 0:10:06]} (18... h5 $14) 19. Bf4 $18 {[%emt 0:03:47] This pair of bishops is nice.} Ra8 {[%emt 0:00:01] Prevents Na7} 20. Nc7 {[%emt 0:03:47]} Ra7 {[%emt 0:04:21]} 21. Bd6 {[%emt 0:01:54]} b6 $2 {[%emt 0:01:17] [#]} (21... Rd8 $2 22. Bxc5 (22. Be7 Rf8 $18) 22... b6 23. Bxb6 Rxc7 24. Bxc7 $18) (21... f5 {is a better chance.} 22. Bd5+ Kh8) 22. Nb5 {[%emt 0:01:06]} Ra6 {[%emt 0:00:13]} 23. Bxf8 {[%emt 0:00:30]} Nxf8 {[%emt 0:00:22]} 24. Rd8 {[%emt 0:00:23]} Bd7 {[%emt 0:00:45]} 25. Rxd7 {[%emt 0:05:01]} Nxd7 {[%emt 0:00:01][%mdl 4096] Endgame. KRN-KBN} 26. Bb7 {[%emt 0:00:14]} Nb8 {[%emt 0:00:00]} (26... c4 {was called for.}) 27. e4 {[%emt 0:00:32][%cal Be2e4,Be4e5][%mdl 32]} Kf8 {[%emt 0:00:50]} 28. f4 {[%emt 0:00:33]} Ke7 {[%emt 0:02:03]} 29. Kf2 {[%emt 0:00:33]} f6 {[%emt 0:02:08]} 30. Ke3 {[%emt 0:00:31]} Kd7 {[%emt 0:00:10]} 31. e5 {[%emt 0:02:26]} f5 {[%emt 0:00:22]} (31... Ke7 $142 32. Ke4 fxe5 33. Kxe5 (33. Bxa6 Nxa6 34. Kxe5 Nb4 $14) 33... Kd7 (33... Nd7+ $2 34. Kd5 $18)) 32. Kd2 {[%emt 0:00:44]} Ke7 {[%emt 0:02:54]} 33. Kc3 {[%emt 0:00:13]} Kd7 {[%emt 0:03:15]} 34. Kc4 {[%emt 0:00:16]} Ke7 {[%emt 0:00:07]} 35. Kd5 {[%emt 0:00:17]} g6 {[%emt 0:00:43]} 36. e6 {[%emt 0:00:37]} h6 {[%emt 0:02:20]} 37. Ke5 {[%emt 0:00:39]} Ra8 {[%emt 0:00:35]} 38. Bxa8 {[%emt 0:00:26]} Na6 {[%emt 0:00:01]} 39. Nc3 {[%emt 0:00:38] Black got outplayed after the opening.   Weighted Error Value: White=0.24 (precise) /Black=0.76.  Mistake:       	---       	Black=5      Inaccurate:     	White=1     	Black=3      OK:         	White=6     	Black=5      Best:        	White=7     	---        Strong:       	White=1     	---} 1-0

[Event "French-ch U16-U18 2024"]
[Site "Agen"]
[Date "2024.04.18"]
[Round "6.9"]
[White "Lissillour, Baptiste"]
[Black "Boumrar, Ayrad"]
[Result "0-1"]
[ECO "B11"]
[WhiteElo "2130"]
[BlackElo "2191"]
[Annotator "TA"]
[PlyCount "70"]
[EventDate "2024.04.14"]
[EventType "swiss"]
[EventCountry "FRA"]
[SourceTitle "playchess.com"]
[Source "ChessBase"]
[SourceQuality "1"]
[TimeControl "5400+30"]

{[%evp 10,70,8,12,26,27,29,14,12,13,14,13,18,0,10,0,10,0,0,-42,0,-39,-24,-33,0,0,16,20,13,15,25,8,0,0,0,22,39,0,0,0,0,0,0,0,20,0,0,8,8,11,59,19,26,16,93,0,10,-360,-225,-407,-404,-1629,-663]} 1. e4 {[%emt 0:00:03]} c6 {[%emt 0:00:07]} 2. Nf3 {[%emt 0:00:34]} d5 {[%emt 0:00:06]} 3. Nc3 {[%emt 0:00:03]} Bg4 {[%emt 0:00:11]} 4. h3 {[%emt 0:00:03]} Bxf3 {[%emt 0:00:25]} 5. Qxf3 {[%emt 0:00:03]} e6 {[%emt 0:00:11]} 6. Be2 {[%emt 0:00:04]} Bc5 {[%emt 0:00:29]} 7. O-O {[%emt 0:00:39]} Nd7 {[%emt 0:01:28]} 8. Qg3 {[%emt 0:10:14]} Bd4 {[%emt 0:06:03] The position is equal.} 9. exd5 {[%emt 0:03:55]} exd5 {[%emt 0:05:05]} 10. Bd1 {[%emt 0:01:11]} Ne7 {[%emt 0:03:39]} 11. Ne2 {[%emt 0:00:55]} Be5 {[%emt 0:04:20]} 12. Qf3 {[%emt 0:01:16]} d4 {[%emt 0:10:01]} 13. Re1 {[%emt 0:14:35]} O-O {[%emt 0:10:23]} 14. d3 {[%emt 0:20:45][%cal Bd2d3,Bd3d4][%mdl 32]} Ng6 {[%emt 0:01:53]} (14... Qa5 {with more complications.} 15. c3 dxc3 16. Nxc3 Nf5) 15. g3 {[%emt 0:04:05]} Qa5 {[%emt 0:07:41]} 16. Rf1 {[%emt 0:07:36]} f5 {[%emt 0:04:49]} 17. c3 {[%emt 0:17:20]} dxc3 {[%emt 0:18:15]} 18. d4 {[%emt 0:00:02]} cxb2 {[%emt 0:00:48]} 19. Bxb2 {[%emt 0:00:01]} Bd6 {[%emt 0:01:58]} 20. Qb3+ $1 {[%emt 0:03:24]} Kh8 {[%emt 0:07:47] Active counter play!} (20... Qd5 {looks sharper.} 21. Qxb7 Rab8 22. Qxd7 Rf7) 21. Qxb7 {[%emt 0:00:40]} Qd8 {[%emt 0:03:33]} 22. Qxc6 {[%emt 0:02:23]} Nb6 {[%emt 0:00:46]} 23. Nc3 {[%emt 0:06:16]} Rc8 {[%emt 0:01:22]} 24. Qg2 {[%emt 0:00:02]} Nc4 {[%emt 0:01:37]} 25. Bc1 {[%emt 0:00:02]} f4 {[%emt 0:01:25] [#] White must now prevent ...fxg3.} 26. Bg4 {[%emt 0:03:14]} Rb8 {[%emt 0:02:25]} 27. Rd1 {[%emt 0:03:01]} fxg3 {[%emt 0:01:52]} 28. fxg3 {[%emt 0:00:01]} Qa5 $132 {[%emt 0:01:12][%mdl 2048] Black is fighting back} 29. Ne4 {[%emt 0:00:37]} Be7 {[%emt 0:00:44]} (29... Bc7 $11 {might be stronger.}) 30. Be6 {[%emt 0:01:08]} Nd6 {[%emt 0:01:07]} 31. Bd2 {[%emt 0:00:56] A strong pair of Bishops.} Qa4 {[%emt 0:00:28] [#]} (31... Qa3 $11 32. Bb3 Nf5) 32. Be3 {[%emt 0:00:33]} (32. Bc3 $1 $16) 32... Qa3 {[%emt 0:00:35] Repels Nc5} 33. Bf2 {[%emt 0:00:45][%mdl 8192]} (33. Bb3 $11) 33... Rb2 {[%emt 0:00:37]} 34. Nd2 $2 {[%emt 0:00:21]} (34. Rf1 Nxe4 35. Qxe4 Rbxf2 36. Rxf2 Rxf2 (36... Qxg3+ 37. Rg2 $11) 37. Bb3 (37. Kxf2 $2 Qb2+ 38. Kg1 Qxa1+ $19)) 34... Bg5 $19 {[%emt 0:01:12]} 35. Nf3 {[%emt 0:00:42]} ({Much worse is} 35. Nb1 Qa6 $19 (35... Rfxf2 36. Qxf2 Qe3 37. Qxe3 $15) (35... Rfxf2 36. Qxf2 Qe3 37. Qxe3 $15)) (35. Rab1 $142 Rxd2 (35... Be3 $2 36. Rxb2 Rxf2 37. Rdb1 $19) 36. Rxd2 Bxd2 37. Bb3) 35... Qxf3 {[%emt 0:00:31] Weighted Error Value: White=0.58/Black=0.18 (very precise) .  Loses game:     	White=1     	---        Mistake:       	White=3     	Black=3      Inaccurate:     	White=4     	Black=3      OK:         	White=13    	Black=10     Best:        	White=1     	Black=2      Strong:       	White=1     	---} (35... Rxf2 $142 36. Nxg5 Rxg2+ 37. Kxg2 h6 38. Nf7+ Nxf7) 0-1

[Event "French-ch U16-U18 2024"]
[Site "Agen"]
[Date "2024.04.18"]
[Round "6.10"]
[White "Bedhouche, Rayan"]
[Black "Dessyn, Timothee"]
[Result "0-1"]
[ECO "B27"]
[WhiteElo "1988"]
[BlackElo "2110"]
[Annotator "TA"]
[PlyCount "102"]
[EventDate "2024.04.14"]
[EventType "swiss"]
[EventCountry "FRA"]
[SourceTitle "playchess.com"]
[Source "ChessBase"]
[SourceQuality "1"]
[TimeControl "5400+30"]

{[%evp 14,102,0,0,0,4,8,13,28,23,6,0,0,-33,-16,-14,-12,-12,-18,-24,-20,-33,0,-51,-6,-112,-119,-122,-112,-122,-123,-127,-128,-124,-117,-120,-117,-114,-109,-257,-156,-122,-108,-110,-110,-107,-96,-96,-80,-80,-80,-80,-80,-112,-78,-112,-112,-112,-112,-147,-140,-125,-111,-155,-155,-1428,-8,-59,-8,-3939,-8,-29978,-29979,-29981,-29982,-29982,-29983,-29983,-29976,-29974,-29972,-29988,-29987,-29988,-29989,-29996,-29997,-29997,29986,-29998,-29999]} 1. e4 {[%emt 0:00:09]} c5 {[%emt 0:00:06]} 2. Nf3 {[%emt 0:00:07]} g6 {[%emt 0:00:04]} 3. d4 {[%emt 0:00:12]} cxd4 {[%emt 0:00:05]} 4. Qxd4 {[%emt 0:01:34]} Nf6 {[%emt 0:00:05]} 5. Nc3 {[%emt 0:00:03]} Nc6 {[%emt 0:00:12]} 6. Qa4 {[%emt 0:00:05]} d6 {[%emt 0:00:23]} 7. e5 {[%emt 0:00:06]} dxe5 {[%emt 0:00:08]} 8. Nxe5 {[%emt 0:00:07][%cal Of1c4]} Bg7 {[%emt 0:00:04]} 9. Nxc6 {[%emt 0:01:48]} bxc6 {[%emt 0:00:58]} 10. Qxc6+ {[%emt 0:00:22]} Bd7 {[%emt 0:00:05] The position is equal.} 11. Qa6 {[%emt 1:31:27]} O-O {[%emt 0:03:38]} 12. Bd3 {[%emt 0:00:00]} Qc7 {[%emt 0:04:22]} 13. Qc4 {[%emt 0:00:00] Against Ng4} Qe5+ {[%emt 0:09:41][%mdl 1024] Black has compensation.} 14. Be2 {[%emt 0:00:00]} Rac8 {[%emt 0:11:12]} 15. Qf4 {[%emt 0:00:00]} Qa5 $36 {[%emt 0:03:20][%mdl 2048] Threatens to win with ...Nd5. Black has the initiative.} 16. O-O {[%emt 0:00:00]} Bf5 {[%emt 0:11:01]} 17. Bd2 {[%emt 0:00:00]} Bxc2 {[%emt 0:08:32]} 18. Rfc1 {[%emt 0:00:00]} (18. Rac1 $11 Nd5 19. Nxd5 Qxd5 20. b3) 18... Bf5 {[%emt 0:04:19]} 19. Nb5 {[%emt 0:00:00]} (19. Nd1 $11 {keeps the balance.} Qb6 20. Rxc8 Rxc8 21. Rc1 Rxc1 22. Bxc1) 19... Rxc1+ $17 {[%emt 0:01:45]} 20. Rxc1 {[%emt 0:00:00]} Qxa2 {[%emt 0:06:59]} 21. Bc4 {[%emt 0:00:00]} Qxb2 {[%emt 0:01:21]} 22. Bc3 {[%emt 0:00:00]} Nh5 $1 {[%emt 0:01:01] Strongly threatening ...Bxc3.} 23. Bxb2 {[%emt 0:00:00]} Nxf4 {[%emt 0:00:08]} 24. Bxg7 {[%emt 0:00:00]} Kxg7 {[%emt 0:00:07]} 25. Nxa7 {[%emt 0:00:00]} Ra8 {[%emt 0:01:29]} 26. Nc6 {[%emt 0:00:00]} (26. Ra1 $17 {was necessary.}) 26... Rc8 {[%emt 0:03:18]} 27. Bb5 {[%emt 0:00:00]} (27. Nxe7 $2 {too greedy.} Ne2+ 28. Kf1 Nxc1 $19) 27... Be4 {[%emt 0:05:17] Black is more active.} 28. f3 {[%emt 0:00:00]} Bxc6 {[%emt 0:00:12]} 29. Rxc6 {[%emt 0:00:00]} Rxc6 {[%emt 0:00:06]} 30. Bxc6 {[%emt 0:00:00][%mdl 4096] Endgame. KB-KN} e5 {[%emt 0:01:32]} 31. Kf2 {[%emt 0:00:00]} f5 {[%emt 0:03:32]} 32. g3 {[%emt 0:00:00]} Ne6 {[%emt 0:00:10]} 33. g4 {[%emt 0:00:00]} Kf6 {[%emt 0:04:22]} 34. h4 {[%emt 0:00:00]} Nc5 {[%emt 0:03:40]} 35. Ke3 {[%emt 0:00:00]} h6 {[%emt 0:03:06]} 36. Be8 {[%emt 0:00:00]} f4+ {[%emt 0:02:37]} 37. Ke2 {[%emt 0:00:00]} g5 {[%emt 0:01:16]} 38. hxg5+ {[%emt 0:00:00]} Kxg5 {[%emt 0:02:46]} ({Don't do} 38... hxg5 39. Bc6 $15) 39. Bc6 {[%emt 0:00:00] [#]} (39. Kf1 $17) 39... e4 $2 {[%emt 0:01:33]} 40. fxe4 $11 {[%emt 0:00:35]} Kxg4 {[%emt 0:00:08]} (40... Ne6 $15 41. Bd7 Nd4+ 42. Kf2 Kf6) 41. Bd5 $2 {[%emt 0:01:11][%mdl 8192]} (41. e5 $11) 41... h5 $2 {[%emt 0:00:57]} (41... f3+ $19 42. Ke3 Kg3) 42. Kf2 $2 {[%emt 0:02:24][%mdl 8192]} (42. e5 $11) 42... Nd3+ {[%emt 0:00:19]} 43. Kg2 {[%emt 0:03:13]} f3+ {[%emt 0:00:12]} 44. Kh2 {[%emt 0:01:11]} Ne5 {[%emt 0:02:11]} 45. Be6+ {[%emt 0:01:35]} Kf4 {[%emt 0:00:14]} 46. Bf5 {[%emt 0:07:21]} Ng4+ {[%emt 0:02:17]} 47. Kg1 {[%emt 0:00:00]} Kg3 {[%emt 0:00:40]} 48. Bxg4 {[%emt 0:00:00]} hxg4 {[%emt 0:00:05]} ({Inferior is} 48... Kxg4 49. e5 Kg5 50. e6 $11) 49. e5 {[%emt 0:00:00]} f2+ {[%emt 0:00:04]} 50. Kf1 {[%emt 0:00:00]} Kf3 {[%emt 0:00:09]} 51. e6 {[%emt 0:00:00]} g3 {[%emt 0:00:03] Weighted Error Value: White=0.55/Black=0.41.  Loses game:     	White=3     	---        Missed win:     	---       	Black=2      Mistake:       	White=3     	---        Inaccurate:     	White=5     	Black=4      OK:         	White=11    	Black=13     Best:        	White=3     	Black=2      Strong:       	---       	Black=1} 0-1

[Event "French-ch U16-U18 2024"]
[Site "Agen"]
[Date "2024.04.18"]
[Round "6.11"]
[White "Le Coz, Marie Sarah"]
[Black "Deladerriere, Calypso"]
[Result "0-1"]
[ECO "D07"]
[WhiteElo "1840"]
[BlackElo "1935"]
[Annotator "TA"]
[PlyCount "89"]
[EventDate "2024.04.14"]
[EventType "swiss"]
[EventCountry "FRA"]
[SourceTitle "playchess.com"]
[Source "ChessBase"]
[SourceQuality "1"]
[TimeControl "5400+30"]

{[%evp 12,89,41,35,78,37,52,47,63,0,0,-50,-57,-57,-49,-54,-41,-58,-63,-87,-85,-116,-32,-30,-28,-29,-27,-75,-20,-83,-89,-154,-168,-149,-102,-112,-81,-100,-94,-95,-103,-175,0,-66,-31,-113,-112,-301,-291,-281,-284,-304,-305,-325,-165,-160,-163,-222,-50,-55,-27,-41,-36,-31,-29,-26,-37,-98,-63,-70,-70,-90,-95,-133,-104,-91,-78,-770,-768,-745]} 1. d4 {[%emt 0:00:04]} d5 {[%emt 0:00:15]} 2. c4 {[%emt 0:00:12]} Nc6 {[%emt 0:00:18]} 3. cxd5 {[%emt 0:00:25]} Qxd5 {[%emt 0:00:20]} 4. e3 {[%emt 0:00:21]} e5 {[%emt 0:00:32]} 5. Nc3 {[%emt 0:00:30]} Bb4 {[%emt 0:00:26]} 6. a3 {[%emt 0:00:27]} Bxc3+ {[%emt 0:01:07]} 7. bxc3 {[%emt 0:00:05]} Qd6 {[%emt 0:01:41]} 8. d5 {[%emt 0:04:42]} Nce7 {[%emt 0:01:30]} 9. c4 {[%emt 1:28:14]} c6 {[%emt 0:01:59] White is slightly better.} 10. e4 {[%emt 0:00:00]} (10. a4 $14) 10... f5 $11 {[%emt 0:03:10]} 11. Bb2 {[%emt 0:00:00]} (11. exf5 $11 Nf6 12. Nf3) 11... fxe4 $15 {[%emt 0:06:05]} 12. dxc6 {[%emt 0:00:00]} Qxd1+ {[%emt 0:03:08]} 13. Rxd1 {[%emt 0:00:00]} Nxc6 {[%emt 0:00:27]} 14. Ne2 {[%emt 0:00:00]} Nf6 {[%emt 0:01:47]} 15. Nc3 {[%emt 0:00:00]} O-O {[%emt 0:08:28]} 16. Nd5 {[%emt 0:00:00]} Bf5 {[%emt 0:02:27]} (16... Bg4 $17 17. Rd2 Rad8) 17. Be2 {[%emt 0:00:00]} Rad8 {[%emt 0:01:43]} 18. O-O {[%emt 0:00:00]} Be6 {[%emt 0:01:17]} 19. Nc7 {[%emt 0:00:00]} (19. f4 $11 {deserves consideration.}) 19... Bc8 {[%emt 0:10:41]} (19... Bg4 $17 20. Bxg4 Nxg4) 20. Nb5 {[%emt 0:00:00]} (20. Nd5 $11) 20... Bg4 $17 {[%emt 0:10:41]} 21. Nc3 {[%emt 0:00:00]} (21. f3 $142 exf3 22. gxf3) 21... Bxe2 {[%emt 0:03:07]} 22. Nxe2 {[%emt 0:00:00]} Nd7 {[%emt 0:02:12]} ({Better is} 22... Rxd1 23. Rxd1 Ng4) 23. Ng3 {[%emt 0:00:00]} Nc5 {[%emt 0:01:06][%cal Oe4e3]} 24. Rd5 {[%emt 0:00:00]} Rxd5 {[%emt 0:03:58]} 25. cxd5 {[%emt 0:00:00]} Nd4 {[%emt 0:00:54]} 26. Rd1 {[%emt 0:00:00] [#]} (26. Re1 $17) 26... Nb5 $2 {[%emt 0:12:46] Excellent horsemanship.} (26... Rd8 $1 $19 27. Bc3 (27. Bxd4 $2 Rxd5 28. Ne2 Kf7 $19) 27... Rxd5) 27. d6 {[%emt 0:00:00]} ({White should try} 27. Bxe5 $11 Re8 28. Bd4 Nxd4 29. Rxd4) 27... Nd3 {[%emt 0:01:16]} 28. d7 {[%emt 0:00:18]} Rd8 {[%emt 0:00:53]} (28... Nxb2 $2 {too greedy.} 29. d8=Q (29. d8=R $2 Nxd1 30. Rxd1 b6 $19) 29... Rxd8 30. Rxd8+ Kf7 31. Rd7+ (31. Nxe4 b6 $18) 31... Kg8 32. Rxb7 $18) 29. Ba1 {[%emt 0:00:28]} (29. Rd2 $17) 29... Nxa3 $19 {[%emt 0:02:17]} 30. Nxe4 {[%emt 0:02:19]} Rxd7 {[%emt 0:00:19]} 31. Kf1 {[%emt 0:02:27]} b5 {[%emt 0:01:16]} 32. g3 {[%emt 0:02:27]} Nc2 {[%emt 0:02:40]} (32... Nc5 $142 33. Rd2 Nc4 (33... Nxe4 $2 {is the wrong capture.} 34. Rxd7 Nc4 35. Rxa7 $18) 34. Rxd7 Nxd7) 33. Ke2 {[%emt 0:02:33]} Nxa1 {[%emt 0:01:53]} 34. Rxd3 $17 {[%emt 0:00:33][%mdl 4096] Endgame. KRN-KRN} (34. Rxa1 $142 Nb4 35. f4) 34... Rc7 $2 {[%emt 0:07:28]} (34... Rxd3 $19 35. Kxd3 Nb3) 35. Ng5 $15 {[%emt 0:00:15]} Rc8 {[%emt 0:00:50] Against Rd8+. White must now prevent ...Nc2.} 36. Ra3 {[%emt 0:01:33][%csl LRa1,LRa7]} Nc2 {[%emt 0:00:02]} 37. Rxa7 {[%emt 0:00:15]} Nd4+ {[%emt 0:01:10]} 38. Kd3 {[%emt 0:00:20]} Rb8 {[%emt 0:00:38]} 39. f4 {[%emt 0:00:16]} ({White should play} 39. Re7 $15) 39... b4 {[%emt 0:00:56]} 40. fxe5 {[%emt 0:00:46]} Nc6 {[%emt 0:00:02][%csl LRa7,LRe5]} 41. Ra1 {[%emt 0:00:38]} Nxe5+ {[%emt 0:00:15]} 42. Ke4 {[%emt 0:00:04]} Nc4 {[%emt 0:00:42] Hoping for ...b3.} 43. Kd4 {[%emt 0:00:12]} Na3 {[%emt 0:00:37]} 44. Kd3 {[%emt 0:01:34][%mdl 8192] [#] Against Nc2} (44. Ra2 $17) 44... b3 $1 $19 {[%emt 0:00:16]} 45. Ne4 {[%emt 0:01:02] Weighted Error Value: White=0.55/Black=0.30.  Loses game:     	White=2     	---        Missed win:     	---       	Black=2      Mistake:       	White=10    	Black=4      Inaccurate:     	White=3     	Black=3      OK:         	White=9     	Black=17     Best:        	White=1     	Black=2      Strong:       	---       	Black=1} 0-1